[Event "MČR družstev mladších žáků 2024"]
[Site "Harrachov, Czech Republic"]
[Date "2024.06.15"]
[Round "6.21"]
[White "Moravec Rene"]
[Black "Filip Damian"]
[Result "1/2-1/2"]
[TimeControl "25+10"]
[WhiteFideId "23745274"]
[BlackFideId "23755415"]
[WhiteElo "1295"]
[BlackElo "1196"]

1. e4 {[%clk 00:25:14]} {[%emt 00:00:05]} e5 {[%clk 00:25:18]} {[%emt
00:00:03]} 2. Bc4 {[%clk 00:25:23]} {[%emt 00:00:01]} Nf6 {[%clk 00:25:27]}
{[%emt 00:00:02]} 3. d3 {[%clk 00:25:30]} {[%emt 00:00:03]} c6 {[%clk
00:25:33]} {[%emt 00:00:03]} 4. Nf3 {[%clk 00:25:38]} {[%emt 00:00:02]} d5
{[%clk 00:25:39]} {[%emt 00:00:04]} 5. exd5 {[%clk 00:25:44]} {[%emt 00:00:03]}
cxd5 {[%clk 00:25:48]} {[%emt 00:00:02]} 6. Bb5+ {[%clk 00:25:53]} {[%emt
00:00:01]} Bd7 {[%clk 00:25:57]} 7. Bxd7+ {[%clk 00:25:51]} {[%emt 00:00:12]}
Nbxd7 {[%clk 00:26:05]} {[%emt 00:00:02]} 8. O-O {[%clk 00:25:57]} {[%emt
00:00:04]} Bd6 {[%clk 00:26:04]} {[%emt 00:00:10]} 9. Bg5 {[%clk 00:25:58]}
{[%emt 00:00:10]} h6 {[%clk 00:26:07]} {[%emt 00:00:07]} 10. Bh4 {[%clk
00:26:05]} {[%emt 00:00:02]} O-O {[%clk 00:25:39]} {[%emt 00:00:38]} 11. Nc3
{[%clk 00:26:12]} {[%emt 00:00:04]} Qb6 {[%clk 00:25:09]} {[%emt 00:00:39]} 12.
d4 {[%clk 00:25:49]} {[%emt 00:00:34]} e4 {[%clk 00:20:21]} {[%emt 00:04:58]}
13. Ne5 {[%emt 00:11:12]} g5 {[%clk 00:09:59]} 14. Nxd7 {[%clk 00:25:09]}
{[%emt 00:00:20]} Nxd7 {[%clk 00:10:04]} {[%emt 00:00:05]} 15. Bg3 {[%clk
00:24:42]} {[%emt 00:00:36]} Bxg3 {[%clk 00:09:32]} {[%emt 00:00:43]} 16. fxg3
{[%clk 00:24:49]} {[%emt 00:00:03]} Qc6 {[%clk 00:08:09]} {[%emt 00:01:32]} 17.
Rf5 {[%clk 00:23:25]} {[%emt 00:01:32]} Nb6 {[%clk 00:08:00]} {[%emt 00:00:22]}
18. Qf1 {[%clk 00:23:11]} {[%emt 00:00:20]} f6 {[%clk 00:07:07]} {[%emt
00:01:07]} 19. Qb5 {[%clk 00:22:41]} {[%emt 00:00:40]} Qxb5 {[%clk 00:05:59]}
{[%emt 00:01:17]} 20. Nxb5 {[%clk 00:22:50]} {[%emt 00:00:02]} Rf7 {[%clk
00:05:27]} {[%emt 00:00:42]} 21. Raf1 {[%clk 00:22:42]} {[%emt 00:00:17]} Kg7
{[%clk 00:04:34]} {[%emt 00:01:02]} 22. Nc3 {[%clk 00:22:30]} {[%emt 00:00:23]}
Rd8 {[%clk 00:04:35]} {[%emt 00:00:09]} 23. a4 {[%clk 00:21:31]} {[%emt
00:01:10]} a5 {[%clk 00:04:00]} {[%emt 00:00:44]} 24. b3 {[%clk 00:21:17]}
{[%emt 00:00:25]} Rdd7 {[%clk 00:02:58]} {[%emt 00:01:12]} 25. Nb5 {[%clk
00:20:30]} {[%emt 00:00:57]} Rd8 {[%clk 00:02:50]} {[%emt 00:00:17]} 26. Kf2
{[%clk 00:19:30]} {[%emt 00:01:11]} Kg6 {[%clk 00:02:24]} {[%emt 00:00:36]} 27.
Ke3 {[%clk 00:19:25]} {[%emt 00:00:15]} Nc8 {[%clk 00:01:56]} {[%emt 00:00:38]}
28. c4 {[%clk 00:18:05]} {[%emt 00:01:30]} Ne7 {[%clk 00:01:24]} {[%emt
00:00:43]} 29. R5f2 {[%clk 00:17:48]} {[%emt 00:00:26]} f5 {[%clk 00:01:02]}
{[%emt 00:00:32]} 30. c5 {[%emt 00:00:59]} Nc8 {[%clk 00:00:43]} 31. h4 {[%clk
00:16:24]} {[%emt 00:01:13]} Rdf8 {[%clk 00:00:25]} {[%emt 00:00:29]} 32. hxg5
{[%clk 00:16:16]} {[%emt 00:00:17]} hxg5 {[%clk 00:00:32]} {[%emt 00:00:02]} 33.
Nc3 {[%clk 00:16:11]} {[%emt 00:00:15]} Rd8 {[%clk 00:00:20]} {[%emt 00:00:23]}
34. Na2 {[%clk 00:15:42]} {[%emt 00:00:40]} Rdf8 {[%clk 00:00:18]} {[%emt
00:00:11]} 35. b4 {[%clk 00:15:36]} {[%emt 00:00:16]} b6 {[%clk 00:00:15]}
{[%emt 00:00:13]} 36. cxb6 {[%clk 00:15:26]} {[%emt 00:00:20]} axb4 {[%clk
00:00:18]} {[%emt 00:00:07]} 37. Nxb4 {[%clk 00:15:30]} {[%emt 00:00:05]} Nxb6
{[%clk 00:00:26]} {[%emt 00:00:02]} 38. a5 {[%clk 00:15:21]} {[%emt 00:00:19]}
Nc4+ {[%clk 00:00:35]} {[%emt 00:00:02]} 39. Ke2 {[%clk 00:15:21]} {[%emt
00:00:10]} Nxa5 {[%clk 00:00:23]} {[%emt 00:00:22]} 40. Nxd5 {[%clk 00:14:46]}
{[%emt 00:00:44]} Nc6 {[%clk 00:00:16]} {[%emt 00:00:18]} 41. g4 {[%clk
00:13:38]} {[%emt 00:01:17]} f4 {[%clk 00:00:12]} {[%emt 00:00:15]} 42. Rd1
{[%clk 00:12:38]} {[%emt 00:01:09]} f3+ {[%clk 00:00:17]} {[%emt 00:00:05]} 43.
gxf3 {[%clk 00:12:40]} {[%emt 00:00:09]} Rxf3 {[%clk 00:00:14]} {[%emt
00:00:13]} 44. Rxf3 {[%clk 00:12:24]} {[%emt 00:00:26]} Rxf3 {[%clk 00:00:15]}
{[%emt 00:00:08]} 45. Ne3 {[%clk 00:11:53]} {[%emt 00:00:41]} Rf4 {[%clk
00:00:13]} {[%emt 00:00:13]} 46. d5 {[%clk 00:11:55]} {[%emt 00:00:08]} Ne5
{[%clk 00:00:16]} {[%emt 00:00:07]} 47. d6 {[%clk 00:11:52]} {[%emt 00:00:13]}
Rf7 {[%clk 00:00:20]} {[%emt 00:00:05]} 1/2-1/2



[ePGN "0.1;DGT LiveChess/2.2.6"]

[Event "MČR družstev mladších žáků 2024"]
[Site "Harrachov, Czech Republic"]
[Date "2024.06.15"]
[Round "6.22"]
[White "Pokorny Petr"]
[Black "Sevcikova Terezie"]
[Result "0-1"]
[TimeControl "25+10"]
[BlackFideId "23766425"]
[WhiteElo "1040"]
[BlackElo "1447"]

1. d4 {[%clk 00:25:17]} {[%emt 00:00:02]} Nf6 {[%clk 00:25:17]} {[%emt
00:00:04]} 2. c4 {[%clk 00:25:24]} {[%emt 00:00:02]} g6 {[%clk 00:25:26]}
{[%emt 00:00:02]} 3. Nc3 {[%clk 00:25:27]} {[%emt 00:00:07]} Bg7 {[%clk
00:25:33]} {[%emt 00:00:03]} 4. Nf3 {[%clk 00:25:28]} {[%emt 00:00:08]} d6
{[%clk 00:25:40]} {[%emt 00:00:03]} 5. Bf4 {[%clk 00:25:28]} {[%emt 00:00:10]}
O-O {[%clk 00:25:47]} {[%emt 00:00:04]} 6. Qd2 {[%clk 00:25:25]} {[%emt
00:00:13]} Nbd7 {[%clk 00:25:51]} {[%emt 00:00:05]} 7. Bh6 {[%clk 00:25:15]}
{[%emt 00:00:21]} b6 {[%emt 00:00:37]} 8. Bxg7 {[%clk 00:25:21]} Kxg7 {[%clk
00:25:35]} {[%emt 00:00:02]} 9. e3 {[%clk 00:25:28]} {[%emt 00:00:03]} Bb7
{[%clk 00:25:40]} {[%emt 00:00:05]} 10. Be2 {[%clk 00:25:29]} {[%emt 00:00:10]}
Re8 {[%clk 00:25:36]} {[%emt 00:00:13]} 11. O-O {[%clk 00:25:06]} {[%emt
00:00:33]} e5 {[%clk 00:25:17]} {[%emt 00:00:29]} 12. dxe5 {[%clk 00:23:47]}
{[%emt 00:01:29]} Nxe5 {[%clk 00:24:38]} {[%emt 00:00:49]} 13. Nxe5 {[%clk
00:23:18]} {[%emt 00:00:39]} dxe5 {[%clk 00:24:46]} {[%emt 00:00:02]} 14. Qxd8
{[%clk 00:22:40]} Raxd8 {[%clk 00:24:46]} 15. Rfd1 {[%clk 00:21:46]} {[%emt
00:01:56]} a5 {[%clk 00:24:14]} {[%emt 00:00:45]} 16. Nb5 {[%clk 00:21:17]}
{[%emt 00:00:42]} c6 {[%clk 00:22:50]} {[%emt 00:01:34]} 17. Nd6 {[%clk
00:20:26]} {[%emt 00:00:58]} Re7 {[%clk 00:22:40]} {[%emt 00:00:21]} 18. Nf5+
{[%clk 00:19:25]} {[%emt 00:01:13]} gxf5 {[%clk 00:21:08]} {[%emt 00:01:42]} 19.
Rxd8 {[%clk 00:19:33]} {[%emt 00:00:02]} f4 {[%clk 00:21:13]} {[%emt 00:00:05]}
20. exf4 {[%clk 00:18:59]} {[%emt 00:00:44]} exf4 {[%clk 00:21:20]} {[%emt
00:00:02]} 21. Bf3 {[%clk 00:18:43]} {[%emt 00:00:27]} a4 {[%clk 00:16:21]}
{[%emt 00:05:09]} 22. h3 {[%clk 00:18:27]} {[%emt 00:00:27]} c5 {[%clk
00:15:44]} {[%emt 00:00:46]} 23. Bxb7 {[%clk 00:17:56]} {[%emt 00:00:41]} Rxb7
{[%clk 00:15:53]} 24. Rad1 {[%clk 00:17:42]} {[%emt 00:00:24]} b5 {[%clk
00:15:44]} {[%emt 00:00:18]} 25. cxb5 {[%clk 00:17:00]} {[%emt 00:00:54]} Rxb5
{[%clk 00:15:52]} {[%emt 00:00:02]} 26. Ra8 {[%clk 00:17:02]} {[%emt 00:00:07]}
Rb4 {[%clk 00:15:01]} {[%emt 00:00:52]} 27. a3 {[%clk 00:17:06]} {[%emt
00:00:15]} Rc4 {[%clk 00:15:01]} {[%emt 00:00:06]} 28. Rd6 {[%clk 00:16:28]}
{[%emt 00:00:52]} Ne4 {[%clk 00:13:15]} {[%emt 00:01:57]} 29. Rda6 {[%clk
00:15:59]} {[%emt 00:00:38]} Rc1+ {[%clk 00:12:37]} {[%emt 00:00:47]} 30. Kh2
{[%clk 00:15:57]} {[%emt 00:00:14]} Nxf2 {[%clk 00:12:41]} {[%emt 00:00:04]} 31.
g3 {[%clk 00:15:06]} {[%emt 00:01:02]} f3 {[%clk 00:10:47]} {[%emt 00:02:04]}
32. g4 {[%clk 00:14:33]} {[%emt 00:00:43]} Nxg4+ {[%clk 00:09:28]} {[%emt
00:01:29]} 33. hxg4 {[%clk 00:12:59]} {[%emt 00:01:44]} f2 {[%clk 00:09:32]}
{[%emt 00:00:06]} 34. Rxa4 {[%clk 00:11:22]} {[%emt 00:01:47]} f1=Q {[%clk
00:09:33]} {[%emt 00:00:09]} 0-1



[ePGN "0.1;DGT LiveChess/2.2.6"]

[Event "MČR družstev mladších žáků 2024"]
[Site "Harrachov, Czech Republic"]
[Date "2024.06.15"]
[Round "6.23"]
[White "Chauvin Simon"]
[Black "Lang Christian"]
[Result "0-1"]
[TimeControl "25+10"]
[WhiteFideId "23739053"]
[BlackFideId "23771771"]
[WhiteElo "1085"]
[BlackElo "1242"]

1. e4 {[%clk 00:25:18]} {[%emt 00:00:01]} e5 {[%clk 00:25:17]} {[%emt
00:00:04]} 2. Nf3 {[%clk 00:25:16]} {[%emt 00:00:11]} Nc6 {[%clk 00:25:18]}
{[%emt 00:00:10]} 3. d4 {[%clk 00:25:23]} {[%emt 00:00:03]} exd4 {[%clk
00:25:19]} {[%emt 00:00:08]} 4. Nxd4 {[%clk 00:25:30]} {[%emt 00:00:03]} Nf6
{[%clk 00:25:06]} {[%emt 00:00:23]} 5. Nxc6 {[%clk 00:24:47]} {[%emt 00:00:53]}
bxc6 {[%clk 00:25:12]} {[%emt 00:00:04]} 6. Bd3 {[%clk 00:24:49]} {[%emt
00:00:08]} Bc5 {[%clk 00:23:52]} {[%emt 00:01:30]} 7. O-O {[%clk 00:24:50]}
{[%emt 00:00:10]} Qe7 {[%clk 00:17:11]} {[%emt 00:06:50]} 8. Qf3 {[%clk
00:22:08]} {[%emt 00:02:51]} Bb7 {[%clk 00:16:00]} {[%emt 00:01:21]} 9. Bg5
{[%clk 00:22:05]} {[%emt 00:00:14]} h6 {[%clk 00:15:56]} {[%emt 00:00:14]} 10.
Bxf6 {[%clk 00:22:07]} {[%emt 00:00:08]} Qxf6 {[%clk 00:15:53]} {[%emt
00:00:13]} 11. Qxf6 {[%clk 00:22:15]} {[%emt 00:00:02]} gxf6 {[%emt 00:00:03]}
12. Nd2 {[%clk 00:20:27]} {[%emt 00:01:56]} O-O-O {[%clk 00:15:03]} {[%emt
00:01:09]} 13. Rfe1 {[%clk 00:17:24]} {[%emt 00:03:14]} d5 {[%clk 00:14:15]}
{[%emt 00:00:56]} 14. a3 {[%clk 00:12:27]} {[%emt 00:05:08]} Rhe8 {[%clk
00:12:03]} {[%emt 00:02:22]} 15. Rad1 {[%clk 00:10:02]} {[%emt 00:02:35]} Re7
{[%clk 00:07:06]} {[%emt 00:05:07]} 16. h3 {[%clk 00:07:24]} {[%emt 00:02:48]}
Rde8 {[%clk 00:05:08]} {[%emt 00:02:08]} 17. Kh1 {[%clk 00:04:05]} {[%emt
00:03:29]} Bxf2 {[%clk 00:03:20]} {[%emt 00:01:58]} 18. Rf1 {[%clk 00:03:23]}
{[%emt 00:00:53]} Bd4 {[%clk 00:02:41]} {[%emt 00:00:48]} 19. c3 {[%clk
00:02:39]} {[%emt 00:00:55]} Be5 {[%clk 00:02:23]} {[%emt 00:00:26]} 20. Rde1
{[%clk 00:02:02]} {[%emt 00:00:49]} Kb8 {[%clk 00:01:41]} {[%emt 00:00:52]} 21.
Re2 {[%clk 00:01:14]} {[%emt 00:00:58]} Re6 {[%clk 00:01:11]} {[%emt 00:00:39]}
22. Rf5 {[%clk 00:01:00]} {[%emt 00:00:24]} Bd6 {[%clk 00:00:51]} {[%emt
00:00:30]} 23. b4 {[%clk 00:00:53]} {[%emt 00:00:17]} c5 {[%clk 00:00:37]}
{[%emt 00:00:25]} 24. bxc5 {[%clk 00:00:41]} {[%emt 00:00:22]} Bxc5 {[%clk
00:00:41]} {[%emt 00:00:06]} 25. a4 {[%clk 00:00:41]} {[%emt 00:00:10]} Kc8
{[%clk 00:00:25]} {[%emt 00:00:26]} 26. Rf4 {[%clk 00:00:19]} {[%emt 00:00:31]}
Rd6 {[%clk 00:00:18]} {[%emt 00:00:17]} 27. Bb5 {[%clk 00:00:21]} {[%emt
00:00:09]} Re7 {[%clk 00:00:22]} {[%emt 00:00:06]} 28. Rf3 {[%clk 00:00:15]}
{[%emt 00:00:15]} Rd8 {[%clk 00:00:15]} {[%emt 00:00:17]} 29. Rxf6 {[%clk
00:00:19]} {[%emt 00:00:07]} dxe4 {[%clk 00:00:16]} {[%emt 00:00:09]} 30. Nxe4
{[%clk 00:00:25]} {[%emt 00:00:03]} Rxe4 {[%clk 00:00:21]} {[%emt 00:00:04]} 31.
Rxe4 {[%clk 00:00:32]} {[%emt 00:00:05]} Bxe4 {[%clk 00:00:30]} 32. Rxh6 {[%clk
00:00:30]} {[%emt 00:00:11]} Be3 {[%emt 00:00:24]} 33. Rf6 {[%clk 00:00:36]}
Bg6 {[%clk 00:00:25]} {[%emt 00:00:05]} 34. c4 {[%clk 00:00:42]} {[%emt
00:00:04]} Bd4 {[%clk 00:00:30]} {[%emt 00:00:05]} 35. Rf1 {[%clk 00:00:35]}
{[%emt 00:00:16]} Be5 {[%clk 00:00:18]} {[%emt 00:00:23]} 36. Re1 {[%clk
00:00:30]} {[%emt 00:00:16]} f6 {[%clk 00:00:21]} {[%emt 00:00:06]} 37. h4
{[%clk 00:00:25]} {[%emt 00:00:15]} Rd4 {[%clk 00:00:23]} {[%emt 00:00:08]} 38.
g3 {[%clk 00:00:29]} {[%emt 00:00:07]} Bxg3 {[%clk 00:00:19]} {[%emt 00:00:13]}
39. Ba6+ {[%clk 00:00:38]} {[%emt 00:00:02]} Kd8 {[%clk 00:00:24]} {[%emt
00:00:04]} 40. Rg1 {[%clk 00:00:44]} {[%emt 00:00:04]} Be4+ {[%clk 00:00:30]}
{[%emt 00:00:04]} 41. Rg2 {[%clk 00:00:50]} {[%emt 00:00:04]} Rd1# {[%clk
00:00:01]} {[%emt 00:00:02]} 0-1



[ePGN "0.1;DGT LiveChess/2.2.6"]

[Event "MČR družstev mladších žáků 2024"]
[Site "Harrachov, Czech Republic"]
[Date "2024.06.15"]
[Round "6.25"]
[White "Fadrny Jachym"]
[Black "Cerny Rodan"]
[Result "0-1"]
[TimeControl "25+10"]
[WhiteFideId "23744170"]
[BlackFideId "23746165"]
[WhiteElo "1537"]
[BlackElo "1299"]

1. e4 {[%clk 00:25:05]} {[%emt 00:00:14]} e5 {[%clk 00:25:19]} {[%emt
00:00:02]} 2. Nf3 {[%clk 00:25:12]} {[%emt 00:00:02]} Nc6 {[%clk 00:25:27]}
{[%emt 00:00:02]} 3. d4 {[%clk 00:25:20]} {[%emt 00:00:03]} exd4 {[%clk
00:25:35]} {[%emt 00:00:02]} 4. Nxd4 {[%clk 00:25:27]} {[%emt 00:00:02]} Nf6
{[%clk 00:25:44]} {[%emt 00:00:02]} 5. Nxc6 {[%clk 00:25:10]} {[%emt 00:00:26]}
bxc6 {[%clk 00:25:49]} {[%emt 00:00:05]} 6. f3 {[%clk 00:24:57]} {[%emt
00:00:24]} Bc5 {[%clk 00:25:46]} {[%emt 00:00:12]} 7. Bg5 {[%clk 00:24:13]}
{[%emt 00:00:53]} Rb8 {[%clk 00:25:22]} {[%emt 00:00:35]} 8. Nc3 {[%clk
00:23:31]} {[%emt 00:00:53]} Qe7 {[%clk 00:24:28]} {[%emt 00:01:04]} 9. Bc4
{[%clk 00:21:30]} {[%emt 00:02:10]} h6 {[%clk 00:24:13]} {[%emt 00:00:26]} 10.
Bh4 {[%clk 00:20:16]} {[%emt 00:01:21]} g5 {[%clk 00:23:12]} {[%emt 00:01:14]}
11. Bg3 {[%clk 00:19:46]} {[%emt 00:00:39]} d5 {[%clk 00:23:13]} {[%emt
00:00:10]} 12. Bd3 {[%clk 00:19:28]} {[%emt 00:00:28]} Rxb2 {[%clk 00:22:32]}
{[%emt 00:00:51]} 13. e5 {[%clk 00:13:58]} {[%emt 00:05:39]} Nh5 {[%clk
00:21:56]} {[%emt 00:00:46]} 14. Kd2 {[%clk 00:11:59]} {[%emt 00:02:10]} Bb4
{[%clk 00:21:29]} {[%emt 00:00:37]} 15. a3 {[%clk 00:08:57]} {[%emt 00:03:12]}
Ba5 {[%clk 00:21:03]} {[%emt 00:00:36]} 16. Bf2 {[%clk 00:08:54]} {[%emt
00:00:13]} Qxe5 {[%clk 00:19:00]} {[%emt 00:02:13]} 17. Be1 {[%clk 00:06:24]}
{[%emt 00:02:39]} Bxc3+ {[%clk 00:18:10]} {[%emt 00:01:00]} 18. Kc1 {[%clk
00:06:30]} {[%emt 00:00:05]} Nf4 {[%clk 00:17:34]} {[%emt 00:00:46]} 19. Bxc3
{[%clk 00:06:08]} {[%emt 00:00:31]} Qxc3 {[%clk 00:17:38]} {[%emt 00:00:06]} 20.
Qe1+ {[%clk 00:06:16]} {[%emt 00:00:02]} Qxe1+ {[%clk 00:15:20]} {[%emt
00:02:28]} 21. Rxe1+ {[%clk 00:06:22]} {[%emt 00:00:04]} Kd8 {[%clk 00:15:29]}
{[%emt 00:00:02]} 22. Kxb2 {[%clk 00:06:27]} {[%emt 00:00:05]} Nxg2 {[%clk
00:15:33]} {[%emt 00:00:06]} 23. Rg1 {[%clk 00:05:58]} {[%emt 00:00:34]} Nh4
{[%clk 00:15:12]} {[%emt 00:00:35]} 24. Raf1 {[%clk 00:05:36]} {[%emt
00:00:32]} Re8 {[%clk 00:15:08]} {[%emt 00:00:15]} 25. f4 {[%clk 00:05:24]}
{[%emt 00:00:22]} f6 {[%clk 00:14:43]} {[%emt 00:00:34]} 26. fxg5 {[%clk
00:05:08]} {[%emt 00:00:26]} fxg5 {[%clk 00:14:47]} {[%emt 00:00:06]} 27. Rf6
{[%clk 00:05:05]} {[%emt 00:00:13]} Re6 {[%clk 00:14:33]} {[%emt 00:00:24]} 28.
Rgf1 {[%clk 00:04:28]} {[%emt 00:00:46]} Ke7 {[%clk 00:14:23]} {[%emt
00:00:21]} 29. Rf7+ {[%clk 00:04:32]} {[%emt 00:00:06]} Kd6 {[%clk 00:14:15]}
{[%emt 00:00:18]} 30. Rf8 {[%clk 00:03:57]} {[%emt 00:00:40]} Bd7 {[%clk
00:14:06]} {[%emt 00:00:24]} 31. Ra8 {[%clk 00:03:36]} {[%emt 00:00:31]} c5
{[%clk 00:13:34]} {[%emt 00:00:43]} 32. Rxa7 {[%clk 00:03:15]} {[%emt
00:00:32]} c4 {[%clk 00:13:36]} {[%emt 00:00:07]} 33. Bh7 {[%clk 00:02:24]}
{[%emt 00:01:00]} Re2 {[%clk 00:12:18]} {[%emt 00:01:29]} 34. Ra6+ {[%clk
00:02:26]} {[%emt 00:00:08]} Kc5 {[%clk 00:12:06]} {[%emt 00:00:21]} 35. Rxh6
{[%clk 00:02:18]} {[%emt 00:00:18]} Rxh2 {[%clk 00:12:04]} {[%emt 00:00:13]} 36.
Bg8 {[%clk 00:01:55]} {[%emt 00:00:31]} Nf3 {[%clk 00:11:38]} {[%emt 00:00:38]}
37. Rxh2 {[%clk 00:01:58]} {[%emt 00:00:06]} Nxh2 {[%clk 00:11:47]} {[%emt
00:00:02]} 38. Rd1 {[%clk 00:02:00]} {[%emt 00:00:07]} c6 {[%clk 00:11:46]}
{[%emt 00:00:11]} 39. c3 {[%clk 00:02:02]} {[%emt 00:00:08]} g4 {[%clk
00:11:54]} {[%emt 00:00:03]} 40. Rg1 {[%clk 00:01:37]} {[%emt 00:00:33]} Nf3
{[%clk 00:11:48]} {[%emt 00:00:18]} 41. Rh1 {[%clk 00:01:35]} {[%emt 00:00:12]}
g3 {[%clk 00:11:31]} {[%emt 00:00:26]} 42. Rd1 {[%clk 00:00:24]} {[%emt
00:01:20]} g2 {[%clk 00:11:24]} {[%emt 00:00:19]} 43. Bh7 {[%clk 00:00:32]}
{[%emt 00:00:02]} g1=Q 44. Rxg1 {[%clk 00:00:40]} Nxg1 {[%clk 00:11:25]} {[%emt
00:00:02]} 45. a4 {[%clk 00:00:48]} {[%emt 00:00:02]} Nh3 {[%clk 00:10:20]}
{[%emt 00:01:15]} 46. Bg8 {[%clk 00:00:57]} {[%emt 00:00:02]} Nf4 {[%clk
00:10:26]} {[%emt 00:00:04]} 47. Kc2 {[%clk 00:00:55]} {[%emt 00:00:12]} Nd3
{[%clk 00:10:21]} {[%emt 00:00:14]} 48. a5 {[%clk 00:00:43]} {[%emt 00:00:22]}
Kb5 {[%clk 00:10:22]} {[%emt 00:00:10]} 49. Kd2 {[%clk 00:00:49]} {[%emt
00:00:04]} Kxa5 {[%clk 00:10:26]} {[%emt 00:00:07]} 50. Ke3 {[%clk 00:00:58]}
Ka4 {[%clk 00:10:00]} {[%emt 00:00:36]} 51. Kd4 {[%clk 00:01:06]} {[%emt
00:00:02]} Kb3 {[%clk 00:10:09]} {[%emt 00:00:01]} 52. Bf7 {[%clk 00:01:08]}
{[%emt 00:00:07]} Bf5 {[%clk 00:09:53]} {[%emt 00:00:27]} 53. Be8 {[%clk
00:01:14]} {[%emt 00:00:03]} c5+ {[%clk 00:09:57]} {[%emt 00:00:07]} 54. Kxd5
{[%clk 00:01:15]} {[%emt 00:00:08]} Kxc3 {[%clk 00:10:04]} {[%emt 00:00:03]} 55.
Bb5 {[%clk 00:01:21]} {[%emt 00:00:02]} Kb4 {[%clk 00:09:52]} {[%emt 00:00:25]}
56. Bxc4 {[%clk 00:01:26]} {[%emt 00:00:05]} Be6+ {[%clk 00:10:01]} {[%emt
00:00:01]} 57. Kxe6 {[%clk 00:01:32]} {[%emt 00:00:03]} Kxc4 {[%clk 00:10:09]}
{[%emt 00:00:02]} 58. Kf5 {[%clk 00:01:39]} {[%emt 00:00:03]} Kb3 {[%clk
00:10:15]} {[%emt 00:00:05]} 59. Ke4 {[%clk 00:01:48]} {[%emt 00:00:01]} c4
{[%clk 00:10:20]} {[%emt 00:00:04]} 60. Ke3 {[%clk 00:01:57]} c3 {[%clk
00:10:27]} {[%emt 00:00:04]} 61. Kxd3 {[%clk 00:02:06]} {[%emt 00:00:01]} Kb2
{[%clk 00:10:31]} {[%emt 00:00:07]} 62. Ke2 {[%clk 00:02:13]} {[%emt 00:00:03]}
c2 {[%clk 00:10:40]} {[%emt 00:00:01]} 63. Kd2 {[%clk 00:02:22]} 0-1



[ePGN "0.1;DGT LiveChess/2.2.6"]